[Event "Deutscher Jugend Online Cup 2020"]
[Site "Tornelo"]
[Date "2020.11.14"]
[Round "2.3"]
[White "Zhou, Lepu Coco"]
[Black "Voigt, Anastasia"]
[Result "1-0"]
[ECO "C86"]
[WhiteElo "1882"]
[BlackElo "1738"]
[Annotator "NA RC"]
[PlyCount "99"]
[EventDate "2020.11.13"]
[EventType "k.o."]
[SourceTitle "playchess.com"]
[Source "ChessBase"]
[SourceQuality "1"]
[TimeControl "600+3"]

1. e4 {[%emt 0:00:00]} e5 {[%emt 0:00:03]} 2. Nf3 {[%emt 0:00:04]} Nc6 {[%emt 0:00:02]} 3. Bb5 {[%emt 0:00:02]} a6 {[%emt 0:00:02]} 4. Ba4 {[%emt 0:00:01]} Nf6 {[%emt 0:00:04]} 5. O-O {[%emt 0:00:02]} b5 {[%emt 0:00:03]} 6. Bb3 {[%emt 0:00:01]} Be7 {[%emt 0:00:02]} 7. Qe2 {[%emt 0:00:03]} d6 {[%emt 0:00:12]} 8. c3 {[%emt 0:00:04]} O-O {[%emt 0:00:04]} 9. d4 {[%emt 0:00:10]} exd4 {[%emt 0:00:33]} 10. cxd4 {[%emt 0:00:03]} Re8 {[%emt 0:00:49]} 11. Rd1 {[%emt 0:00:09]} Bb7 {[%emt 0:00:11]} 12. e5 {[%emt 0:00:07]} Nd7 {[%emt 0:00:45] [#]} 13. e6 $146 {[%emt 0:00:07]} ({Predecessor:} 13. Bf4 Nf8 14. Nc3 Ng6 15. Bg3 h5 16. h3 h4 17. Bh2 Bg5 18. Bc2 dxe5 19. dxe5 {1-0 (44) Al Tarbosh,W (2230)-Makkar,R (2231) Chess.com INT 2020}) 13... fxe6 {[%emt 0:00:12]} 14. Bxe6+ {[%emt 0:00:21]} Kh8 {[%emt 0:00:09]} 15. d5 {[%emt 0:00:29]} Nce5 {[%emt 0:00:12]} 16. Nxe5 {[%emt 0:00:07]} Nxe5 {[%emt 0:00:02]} 17. f4 {[%emt 0:00:12]} Nd7 {[%emt 0:00:24]} 18. Be3 {[%emt 0:00:58]} Bf6 {[%emt 0:00:22]} 19. Nc3 {[%emt 0:00:25]} Nf8 {[%emt 0:00:49]} 20. f5 {[%emt 0:00:24]} c6 {[%emt 0:00:49]} 21. Qf2 {[%emt 0:01:19]} Nxe6 {[%emt 0:00:32]} 22. dxe6 {[%emt 0:00:18]} Qe7 {[%emt 0:00:34]} 23. Ne4 {[%emt 0:00:13]} Be5 {[%emt 0:00:48]} 24. Bg5 {[%emt 0:00:15]} Qc7 {[%emt 0:00:31] [#]} 25. Bf4 $1 {[%emt 0:00:11]} d5 {[%emt 0:00:14]} 26. Bxe5 {[%emt 0:00:15]} Qxe5 {[%emt 0:00:04]} 27. Nc5 {[%emt 0:00:02]} Bc8 {[%emt 0:00:13]} 28. Re1 {[%emt 0:00:14]} Qf6 {[%emt 0:00:08]} 29. Nd7 {[%emt 0:01:23]} Bxd7 {[%emt 0:00:16]} 30. exd7 {[%emt 0:00:02]} Red8 {[%emt 0:00:03]} 31. Re6 {[%emt 0:00:14]} Qf7 {[%emt 0:00:10]} 32. Rxc6 {[%emt 0:00:30]} Rxd7 {[%emt 0:00:14]} 33. Rac1 {[%emt 0:00:06]} h6 {[%emt 0:00:05]} 34. Rc8+ {[%emt 0:00:29]} Rxc8 {[%emt 0:00:03]} 35. Rxc8+ {[%emt 0:00:02]} Kh7 {[%emt 0:00:03]} 36. Qc2 {[%emt 0:00:21]} Qf6 {[%emt 0:00:16]} 37. g3 {[%emt 0:00:48]} d4 {[%emt 0:00:11]} 38. Qd3 {[%emt 0:00:28]} Re7 {[%emt 0:00:29]} 39. Rd8 {[%emt 0:00:23]} Re3 {[%emt 0:00:31]} 40. Qxd4 {[%emt 0:00:09]} Qxd4 {[%emt 0:00:06]} 41. Rxd4 {[%emt 0:00:02]} Re2 {[%emt 0:00:02]} 42. Rd6 {[%emt 0:00:05]} a5 {[%emt 0:00:07]} 43. Ra6 {[%emt 0:00:15]} a4 {[%emt 0:00:04]} 44. Ra7 {[%emt 0:00:07]} Rxb2 {[%emt 0:00:02]} 45. f6 {[%emt 0:00:01]} Kg6 {[%emt 0:00:08]} (45... Kg8 $19 46. Ra8+ (46. Rxg7+ $2 Kf8 $19) 46... Kf7 47. fxg7 Kxg7) 46. fxg7 $2 {[%emt 0:00:03]} (46. f7 {mates} Rb1+ 47. Kf2 Kf6 48. f8=Q+ {[%mdl 64] Double Attack, Discovered Attack} Ke6 49. Re7+ Kd5 50. Qd8+ Kc4 51. Rc7+ Kb4 52. Qd6+ Ka5 53. Ra7#) 46... Rb1+ {[%emt 0:00:06]} 47. Kg2 {[%emt 0:00:02]} Rb2+ {[%emt 0:00:02]} 48. Kh3 {[%emt 0:00:02]} Rxa2 {[%emt 0:00:04]} 49. g8=Q+ {[%emt 0:00:03]} Kf6 {[%emt 0:00:05]} 50. Rf7+ {[%emt 0:00:03]} 1-0

[Event "Deutscher Jugend Online Cup 2020"]
[Site "Tornelo"]
[Date "2020.11.14"]
[Round "2.3"]
[White "N_____, L_____"]
[Black "Marcziter, Alex"]
[Result "1-0"]
[ECO "C84"]
[WhiteElo "1714"]
[BlackElo "1401"]
[Annotator "NA RC"]
[PlyCount "165"]
[EventDate "2020.11.13"]
[EventType "k.o."]
[SourceTitle "playchess.com"]
[Source "ChessBase"]
[SourceQuality "1"]
[TimeControl "600+3"]

1. e4 {[%emt 0:00:00]} e5 {[%emt 0:00:04]} 2. Nf3 {[%emt 0:00:03]} Nc6 {[%emt 0:00:02]} 3. Bb5 {[%emt 0:00:02]} a6 {[%emt 0:00:05]} 4. Ba4 {[%emt 0:00:02]} Nf6 {[%emt 0:00:04]} 5. d3 {[%emt 0:00:03]} b5 {[%emt 0:00:03]} 6. Bb3 {[%emt 0:00:02]} Be7 {[%emt 0:00:09]} 7. Nc3 {[%emt 0:00:19]} d6 {[%emt 0:00:06]} 8. Nd5 {[%emt 0:00:20]} O-O {[%emt 0:01:09]} 9. O-O {[%emt 0:00:05]} Bb7 {[%emt 0:00:30]} 10. c3 {[%emt 0:00:08]} Na5 {[%emt 0:00:28]} 11. Nxf6+ {[%emt 0:00:37]} Bxf6 {[%emt 0:00:03]} 12. Bc2 {[%emt 0:00:02]} c5 {[%emt 0:00:11]} 13. Be3 {[%emt 0:00:16]} Nc6 {[%emt 0:00:12]} 14. d4 {[%emt 0:00:24]} cxd4 {[%emt 0:00:50]} 15. cxd4 {[%emt 0:00:14]} Rc8 {[%emt 0:00:22]} 16. d5 {[%emt 0:00:21]} Ne7 {[%emt 0:00:25]} 17. Rc1 {[%emt 0:00:14]} Ng6 {[%emt 0:00:08]} 18. Bb1 {[%emt 0:01:02]} Qd7 {[%emt 0:00:27]} 19. Qd2 {[%emt 0:00:17]} Rxc1 {[%emt 0:00:34]} 20. Rxc1 {[%emt 0:00:05]} Rc8 {[%emt 0:00:02]} 21. Rc3 {[%emt 0:00:34]} Rxc3 {[%emt 0:00:31]} 22. Qxc3 {[%emt 0:00:08]} Qc8 {[%emt 0:00:05]} 23. Qxc8+ {[%emt 0:00:12]} Bxc8 {[%emt 0:00:04]} 24. Bd3 {[%emt 0:00:17]} Bd8 {[%emt 0:00:13]} 25. Nd2 {[%emt 0:00:16]} Kf8 {[%emt 0:00:23]} 26. Nb3 {[%emt 0:00:05]} Ke8 {[%emt 0:00:24]} 27. g3 {[%emt 0:00:06]} Kd7 {[%emt 0:00:05]} 28. Bd2 {[%emt 0:00:10]} Bb6 {[%emt 0:00:16]} 29. Na5 {[%emt 0:00:45]} Kc7 {[%emt 0:00:31]} 30. Kg2 {[%emt 0:00:58]} Bd7 {[%emt 0:00:33]} 31. h4 {[%emt 0:00:51]} Bd4 {[%emt 0:00:34]} 32. Bc3 {[%emt 0:00:41]} Bxc3 {[%emt 0:00:07]} 33. bxc3 {[%emt 0:00:02]} Kb6 {[%emt 0:00:05]} 34. Nb3 {[%emt 0:00:03]} a5 {[%emt 0:00:08]} 35. a3 {[%emt 0:00:08]} a4 {[%emt 0:00:13]} 36. Nd2 {[%emt 0:00:15]} Kc5 {[%emt 0:00:03]} 37. h5 {[%emt 0:00:14]} Ne7 {[%emt 0:00:03]} 38. f4 {[%emt 0:00:08]} f6 {[%emt 0:00:13]} 39. f5 {[%emt 0:00:13]} Nc8 {[%emt 0:00:09]} 40. g4 {[%emt 0:00:20]} h6 {[%emt 0:00:26]} 41. Kf2 {[%emt 0:00:13]} Nb6 {[%emt 0:00:02]} 42. Ke3 {[%emt 0:00:04]} Nc8 {[%emt 0:00:08]} 43. Nf3 {[%emt 0:00:04]} Ne7 {[%emt 0:00:09]} 44. Ne1 {[%emt 0:00:21]} Nc8 {[%emt 0:00:06]} 45. Nc2 {[%emt 0:00:07]} Ne7 {[%emt 0:00:05]} 46. Nb4 {[%emt 0:00:04]} Bc8 {[%emt 0:00:03]} 47. Be2 {[%emt 0:00:12]} Bb7 {[%emt 0:00:05]} 48. Kd2 {[%emt 0:00:05]} Bc8 {[%emt 0:00:03]} 49. Kc2 {[%emt 0:00:01]} Bb7 {[%emt 0:00:05]} 50. Nd3+ {[%emt 0:00:01]} Kb6 {[%emt 0:00:02]} 51. Nb4 {[%emt 0:00:03]} Kc5 {[%emt 0:00:02]} 52. Nd3+ {[%emt 0:00:01]} Kb6 {[%emt 0:00:02]} 53. Nf2 {[%emt 0:00:03]} Kc5 {[%emt 0:00:06]} 54. Kd3 {[%emt 0:00:03]} Bc8 {[%emt 0:00:06]} 55. Nh3 {[%emt 0:00:03]} Bb7 {[%emt 0:00:05]} 56. Ng1 {[%emt 0:00:02]} Ba6 {[%emt 0:00:05]} 57. Kc2 {[%emt 0:00:04]} Bb7 {[%emt 0:00:02]} 58. Nf3 {[%emt 0:00:02]} Bc8 {[%emt 0:00:05]} 59. Kd3 {[%emt 0:00:03]} Ba6 {[%emt 0:00:03]} 60. Kd2 {[%emt 0:00:04]} Bb7 {[%emt 0:00:05]} 61. Ne1 {[%emt 0:00:04]} Bc8 {[%emt 0:00:07]} 62. Kd3 {[%emt 0:00:07]} Ba6 {[%emt 0:00:03]} 63. Ke3 {[%emt 0:00:02]} Bc8 {[%emt 0:00:04]} 64. Nc2 {[%emt 0:00:03]} Bd7 {[%emt 0:00:06]} 65. Kd3 {[%emt 0:00:02]} Bc8 {[%emt 0:00:03]} 66. Bf1 {[%emt 0:00:05]} Bb7 {[%emt 0:00:06]} 67. Nb4 {[%emt 0:00:02]} Bc8 {[%emt 0:00:03]} 68. Be2 {[%emt 0:00:03]} Bb7 {[%emt 0:00:02]} 69. Bd1 {[%emt 0:00:01]} Bc8 {[%emt 0:00:02]} 70. Bc2 {[%emt 0:00:02]} Bb7 {[%emt 0:00:02]} 71. Na2 {[%emt 0:00:04]} Bc8 {[%emt 0:00:03]} 72. Nc1 {[%emt 0:00:04]} Bb7 {[%emt 0:00:03]} 73. Ne2 {[%emt 0:00:03]} Bc8 {[%emt 0:00:02]} 74. Ng3 {[%emt 0:00:02]} Bb7 {[%emt 0:00:03]} 75. Nf1 {[%emt 0:00:03]} Ba6 {[%emt 0:00:03]} 76. Kd2 {[%emt 0:00:03]} Bc8 {[%emt 0:00:03]} 77. Ne3 {[%emt 0:00:02]} Bb7 {[%emt 0:00:03]} 78. Bd3 {[%emt 0:00:05]} Bc8 {[%emt 0:00:03]} 79. c4 {[%emt 0:00:04]} bxc4 {[%emt 0:00:04]} 80. Nxc4 {[%emt 0:00:03]} Ba6 {[%emt 0:00:03]} 81. Kc3 {[%emt 0:00:07]} Bb7 {[%emt 0:00:04]} 82. Nb2 {[%emt 0:00:01]} Nc8 {[%emt 0:00:05]} 83. Nxa4# {[%emt 0:00:02]} 1-0

[Event "Deutscher Jugend Online Cup 2020"]
[Site "Tornelo"]
[Date "2020.11.14"]
[Round "2.3"]
[White "Trunz, Michelle"]
[Black "Lorenz, Veronika"]
[Result "0-1"]
[ECO "D20"]
[WhiteElo "1673"]
[BlackElo "1261"]
[Annotator "NA RC"]
[PlyCount "152"]
[EventDate "2020.11.13"]
[EventType "k.o."]
[SourceTitle "playchess.com"]
[Source "ChessBase"]
[SourceQuality "1"]
[TimeControl "600+3"]

1. d4 {[%emt 0:00:00]} d5 {[%emt 0:00:06]} 2. c4 {[%emt 0:00:02]} Nc6 {[%emt 0:00:05]} 3. Nc3 {[%emt 0:00:29]} dxc4 {[%emt 0:00:11]} 4. e3 {[%emt 0:00:10]} Nf6 {[%emt 0:00:06]} 5. Bxc4 {[%emt 0:00:08]} e6 {[%emt 0:00:42]} 6. Nf3 {[%emt 0:00:04]} Bb4 {[%emt 0:00:09]} 7. O-O {[%emt 0:00:15]} O-O {[%emt 0:00:26]} 8. a3 {[%emt 0:00:14]} Bd6 {[%emt 0:00:31]} 9. b4 {[%emt 0:00:32]} e5 {[%emt 0:00:15]} 10. d5 {[%emt 0:00:36]} Ne7 {[%emt 0:01:15]} 11. e4 {[%emt 0:00:16]} Ng6 {[%emt 0:00:14]} 12. Qc2 {[%emt 0:00:20]} Bd7 {[%emt 0:00:30]} 13. Bg5 {[%emt 0:00:26]} h6 {[%emt 0:00:14]} 14. Be3 {[%emt 0:00:10]} c6 {[%emt 0:00:35]} 15. Rac1 {[%emt 0:00:33]} Rc8 {[%emt 0:00:39]} 16. Qb1 {[%emt 0:00:49]} Nh5 {[%emt 0:01:23]} 17. Rfd1 {[%emt 0:00:42]} Nhf4 {[%emt 0:00:10]} 18. g3 {[%emt 0:00:55]} cxd5 {[%emt 0:00:45]} 19. Nxd5 {[%emt 0:00:18]} Nxd5 {[%emt 0:00:08]} 20. Bxd5 {[%emt 0:00:10]} b6 {[%emt 0:00:22]} 21. Rxc8 {[%emt 0:00:28]} Qxc8 {[%emt 0:00:11]} 22. Bxf7+ {[%emt 0:00:20]} Rxf7 {[%emt 0:00:06]} 23. Rxd6 {[%emt 0:00:02]} Rxf3 {[%emt 0:00:12]} 24. Kg2 {[%emt 0:00:47]} Rf6 {[%emt 0:00:11]} 25. Qd3 {[%emt 0:00:12]} Bh3+ {[%emt 0:00:18]} 26. Kg1 {[%emt 0:00:08]} Rxd6 {[%emt 0:00:06]} 27. Qxd6 {[%emt 0:00:05]} Kh7 {[%emt 0:00:06]} 28. Qd1 {[%emt 0:00:07]} Qg4 {[%emt 0:00:05]} 29. Qxg4 {[%emt 0:00:03]} Bxg4 {[%emt 0:00:03]} 30. Kg2 {[%emt 0:00:04]} Ne7 {[%emt 0:00:10]} 31. f3 {[%emt 0:00:04]} Be6 {[%emt 0:00:03]} 32. f4 {[%emt 0:00:03]} Nc6 {[%emt 0:00:19]} 33. b5 {[%emt 0:00:08]} exf4 {[%emt 0:00:02]} 34. gxf4 {[%emt 0:00:08]} Na5 {[%emt 0:00:03]} 35. f5 {[%emt 0:00:10]} Bc4 {[%emt 0:00:06]} 36. a4 {[%emt 0:00:07]} Kg8 {[%emt 0:00:03]} 37. Kf3 {[%emt 0:00:08]} Bb3 {[%emt 0:00:03]} 38. e5 {[%emt 0:00:03]} Nc4 {[%emt 0:00:10]} 39. Bd4 {[%emt 0:00:15]} Bxa4 {[%emt 0:00:11]} 40. e6 {[%emt 0:00:08]} Bxb5 {[%emt 0:00:14]} 41. Ke4 {[%emt 0:00:13]} Kf8 {[%emt 0:00:11]} 42. Bc3 {[%emt 0:00:17]} a5 {[%emt 0:00:07]} 43. Kd5 {[%emt 0:00:08]} Ne3+ {[%emt 0:00:05]} 44. Ke4 {[%emt 0:00:04]} Ng4 {[%emt 0:00:05]} 45. h3 {[%emt 0:00:05]} Nf6+ {[%emt 0:00:02]} 46. Ke5 {[%emt 0:00:07]} Ke7 {[%emt 0:00:04]} 47. Bb2 {[%emt 0:00:06]} a4 {[%emt 0:00:02]} 48. Ba3+ {[%emt 0:00:02]} Ke8 {[%emt 0:00:04]} 49. e7 {[%emt 0:00:03]} Ng8 {[%emt 0:00:07]} 50. Ke6 {[%emt 0:00:03]} Bc4+ {[%emt 0:00:01]} 51. Kd6 {[%emt 0:00:03]} Nxe7 {[%emt 0:00:02]} 52. Kc7 {[%emt 0:00:06]} Nxf5 {[%emt 0:00:02]} 53. Kxb6 {[%emt 0:00:04]} Ng3 {[%emt 0:00:03]} 54. Bb2 {[%emt 0:00:06]} Kf7 {[%emt 0:00:02]} 55. Kc5 {[%emt 0:00:02]} Bb3 {[%emt 0:00:02]} 56. Kb4 {[%emt 0:00:05]} g5 {[%emt 0:00:02]} 57. Kc3 {[%emt 0:00:03]} Kg6 {[%emt 0:00:02]} 58. Kb4 {[%emt 0:00:02]} Kh5 {[%emt 0:00:01]} 59. Kc3 {[%emt 0:00:01]} Kh4 {[%emt 0:00:11]} 60. Kd3 {[%emt 0:00:03]} Kxh3 {[%emt 0:00:01]} 61. Ke3 {[%emt 0:00:01]} h5 {[%emt 0:00:03]} 62. Kf3 {[%emt 0:00:02]} h4 {[%emt 0:00:01]} 63. Kf2 {[%emt 0:00:04]} Ne4+ {[%emt 0:00:04]} 64. Kf3 {[%emt 0:00:03]} Nd2+ {[%emt 0:00:04]} 65. Ke2 {[%emt 0:00:06]} Nc4 {[%emt 0:00:01]} 66. Bf6 {[%emt 0:00:03]} g4 {[%emt 0:00:02]} 67. Ba1 {[%emt 0:00:02]} a3 {[%emt 0:00:03]} 68. Kf1 {[%emt 0:00:02]} a2 {[%emt 0:00:01]} 69. Kf2 {[%emt 0:00:03]} Na3 {[%emt 0:00:03]} 70. Kg1 {[%emt 0:00:05]} Nc2 {[%emt 0:00:01]} 71. Kh1 {[%emt 0:00:02]} Nxa1 {[%emt 0:00:03]} 72. Kg1 {[%emt 0:00:03]} Nc2 {[%emt 0:00:02]} 73. Kf2 {[%emt 0:00:01]} a1=Q {[%emt 0:00:05]} 74. Ke2 {[%emt 0:00:01]} Qc3 {[%emt 0:00:03]} 75. Kf2 {[%emt 0:00:02]} Qf3+ {[%emt 0:00:02]} 76. Kg1 {[%emt 0:00:02]} Qg2# {[%emt 0:00:01]} 0-1

[Event "Deutscher Jugend Online Cup 2020"]
[Site "Tornelo"]
[Date "2020.11.14"]
[Round "2.3"]
[White "Trunz, Tamila"]
[Black "Woiteck, Sophia"]
[Result "0-1"]
[ECO "B24"]
[WhiteElo "1379"]
[BlackElo "1285"]
[Annotator "NA RC"]
[PlyCount "106"]
[EventDate "2020.11.13"]
[EventType "k.o."]
[SourceTitle "playchess.com"]
[Source "ChessBase"]
[SourceQuality "1"]
[TimeControl "600+3"]

1. e4 {[%emt 0:00:00]} c5 {[%emt 0:00:03]} 2. Nc3 {[%emt 0:00:03]} d6 {[%emt 0:00:03]} 3. g3 {[%emt 0:00:03]} Nf6 {[%emt 0:00:06]} 4. Bg2 {[%emt 0:00:04]} Nc6 {[%emt 0:00:13]} 5. d3 {[%emt 0:00:03]} Bd7 {[%emt 0:00:03]} 6. Bd2 {[%emt 0:00:07]} e6 {[%emt 0:00:02]} 7. h3 {[%emt 0:00:03]} Be7 {[%emt 0:00:04]} 8. Nge2 {[%emt 0:00:04]} a6 {[%emt 0:00:06]} 9. O-O {[%emt 0:00:04]} O-O {[%emt 0:00:02]} 10. f4 {[%emt 0:00:04]} Rb8 {[%emt 0:00:21]} 11. g4 {[%emt 0:00:04]} Ne8 {[%emt 0:00:21]} 12. Ng3 {[%emt 0:00:03]} Bh4 {[%emt 0:00:07]} 13. Nce2 {[%emt 0:00:08]} Bxg3 {[%emt 0:00:07]} 14. Nxg3 {[%emt 0:00:04]} Qh4 {[%emt 0:00:03]} 15. Qf3 {[%emt 0:00:07]} Nd4 {[%emt 0:00:04]} 16. Qf2 {[%emt 0:00:08]} Nxc2 {[%emt 0:00:41]} 17. Rac1 {[%emt 0:00:05]} Nd4 {[%emt 0:00:11]} 18. Bc3 {[%emt 0:00:15]} e5 {[%emt 0:00:50]} 19. fxe5 {[%emt 0:00:24]} dxe5 {[%emt 0:00:07]} 20. Bxd4 {[%emt 0:00:12]} cxd4 {[%emt 0:00:03]} 21. Nf5 {[%emt 0:00:10]} Qg5 {[%emt 0:00:32]} 22. Rc2 {[%emt 0:00:32]} g6 {[%emt 0:00:32]} 23. Nd6 {[%emt 0:00:06]} Nxd6 {[%emt 0:00:07]} 24. Qf6 {[%emt 0:00:08]} Qxf6 {[%emt 0:00:12]} 25. Rxf6 {[%emt 0:00:04]} Nb5 {[%emt 0:00:03]} 26. a4 {[%emt 0:00:18]} Na7 {[%emt 0:00:07]} 27. b3 {[%emt 0:00:08]} Be6 {[%emt 0:00:08]} 28. b4 {[%emt 0:00:15]} Bb3 {[%emt 0:00:05]} 29. Rc7 {[%emt 0:00:07]} Bxa4 {[%emt 0:00:12]} 30. Re7 {[%emt 0:00:05]} Nc6 {[%emt 0:00:07]} 31. Rc7 {[%emt 0:00:26]} Nxb4 {[%emt 0:00:06]} 32. Rc4 {[%emt 0:00:06]} a5 {[%emt 0:00:54]} 33. Bf1 {[%emt 0:00:42]} Kg7 {[%emt 0:00:04]} 34. g5 {[%emt 0:00:04]} h6 {[%emt 0:00:03]} 35. h4 {[%emt 0:00:07]} hxg5 {[%emt 0:00:12]} 36. hxg5 {[%emt 0:00:04]} Rbc8 {[%emt 0:00:06]} 37. Rb6 {[%emt 0:00:11]} Rxc4 {[%emt 0:00:26]} 38. dxc4 {[%emt 0:00:05]} Bc6 {[%emt 0:00:07]} 39. Bg2 {[%emt 0:00:15]} f6 {[%emt 0:00:06]} 40. gxf6+ {[%emt 0:00:16]} Kxf6 {[%emt 0:00:21]} 41. c5 {[%emt 0:00:10]} Ke7 {[%emt 0:00:04]} 42. Bf1 {[%emt 0:00:20]} Kd8 {[%emt 0:00:06]} 43. Bb5 {[%emt 0:00:05]} Kc7 {[%emt 0:00:05]} 44. Bxc6 {[%emt 0:00:08]} bxc6 {[%emt 0:00:07]} 45. Kg2 {[%emt 0:00:10]} d3 {[%emt 0:00:03]} 46. Kg3 {[%emt 0:00:14]} d2 {[%emt 0:00:03]} 47. Kg4 {[%emt 0:00:11]} d1=Q+ {[%emt 0:00:03]} 48. Kg5 {[%emt 0:00:03]} Qg1+ {[%emt 0:00:05]} 49. Kh6 {[%emt 0:00:03]} Qh2+ {[%emt 0:00:05]} 50. Kg7 {[%emt 0:00:18]} Qh8+ {[%emt 0:00:02]} 51. Kxg6 {[%emt 0:00:03]} Qg8+ {[%emt 0:00:03]} 52. Kh5 {[%emt 0:00:03]} Rf7 {[%emt 0:00:06]} 53. Rxb4 {[%emt 0:00:09]} Rh7# {[%emt 0:00:04]} 0-1

[Event "Deutscher Jugend Online Cup 2020"]
[Site "Tornelo"]
[Date "2020.11.14"]
[Round "3.1"]
[White "Wilmink, Anna"]
[Black "Braeutigam, Katerina"]
[Result "0-1"]
[ECO "B10"]
[WhiteElo "1550"]
[BlackElo "1737"]
[Annotator "NA RC"]
[PlyCount "74"]
[EventDate "2020.11.13"]
[EventType "k.o."]
[SourceTitle "playchess.com"]
[Source "ChessBase"]
[SourceQuality "1"]
[TimeControl "600+3"]

1. e4 {[%emt 0:05:06]} c6 {[%emt 0:06:05]} 2. Nf3 {[%emt 0:00:07]} d5 {[%emt 0:00:05]} 3. exd5 {[%emt 0:00:04]} cxd5 {[%emt 0:00:04]} 4. Ne5 {[%emt 0:00:05]} Nc6 {[%emt 0:00:05]} 5. f4 {[%emt 0:00:04]} e6 {[%emt 0:00:06]} 6. d4 {[%emt 0:00:11]} Nh6 {[%emt 0:00:06]} 7. c3 {[%emt 0:00:13]} Bd6 {[%emt 0:00:05]} 8. Bd3 {[%emt 0:00:16]} O-O {[%emt 0:00:07]} 9. O-O {[%emt 0:00:08]} f6 {[%emt 0:00:09]} 10. Ng4 {[%emt 0:00:16]} Nxg4 {[%emt 0:00:13]} 11. Qxg4 {[%emt 0:00:05]} f5 {[%emt 0:00:10]} 12. Qh5 {[%emt 0:00:15]} g6 {[%emt 0:00:08]} 13. Qh3 {[%emt 0:00:27]} Re8 {[%emt 0:00:06]} 14. Nd2 {[%emt 0:00:06]} Bf8 {[%emt 0:00:06]} 15. Nf3 {[%emt 0:00:12]} Be7 {[%emt 0:00:05]} 16. Ng5 {[%emt 0:00:19]} Bxg5 {[%emt 0:00:05]} 17. fxg5 {[%emt 0:00:05]} Bd7 {[%emt 0:00:05]} 18. Bf4 {[%emt 0:00:10]} Qe7 {[%emt 0:00:10]} 19. Rae1 {[%emt 0:00:08]} Qf7 {[%emt 0:00:07]} 20. Bd2 {[%emt 0:00:31]} a6 {[%emt 0:00:11]} 21. g4 {[%emt 0:00:05]} Qg7 {[%emt 0:00:11]} 22. Qg3 {[%emt 0:00:29]} Rad8 {[%emt 0:00:15]} 23. h4 {[%emt 0:00:07]} Kf7 {[%emt 0:00:46]} 24. h5 {[%emt 0:00:07]} Rh8 {[%emt 0:00:40]} 25. Re2 {[%emt 0:00:30]} Rde8 {[%emt 0:00:12]} 26. Qc7 {[%emt 0:00:13]} Re7 {[%emt 0:00:13]} 27. Qd6 {[%emt 0:00:17]} Nxd4 {[%emt 0:00:16]} 28. cxd4 {[%emt 0:00:23]} Qxd4+ {[%emt 0:00:05]} 29. Be3 {[%emt 0:00:05]} Qxd3 {[%emt 0:00:05]} 30. Ree1 {[%emt 0:00:05]} Qc4 {[%emt 0:00:08]} 31. Qe5 {[%emt 0:00:12]} Qxg4+ {[%emt 0:00:05]} 32. Kh1 {[%emt 0:00:06]} Qh3+ {[%emt 0:00:06]} 33. Qh2 {[%emt 0:00:06]} Qxh2+ {[%emt 0:00:05]} 34. Kxh2 {[%emt 0:00:04]} gxh5 {[%emt 0:00:06]} 35. Kh3 {[%emt 0:00:05]} Rg8 {[%emt 0:00:04]} 36. Kh4 {[%emt 0:00:05]} Rge8 {[%emt 0:00:05]} 37. Kxh5 {[%emt 0:00:04]} Rg8 {[%emt 0:00:05]} 0-1

[Event "Deutscher Jugend Online Cup 2020"]
[Site "Tornelo"]
[Date "2020.11.14"]
[Round "3.1"]
[White "Buchinger, Alexis"]
[Black "B_____, L___"]
[Result "1-0"]
[ECO "B80"]
[WhiteElo "1496"]
[BlackElo "1508"]
[Annotator "NA RC"]
[PlyCount "71"]
[EventDate "2020.11.13"]
[EventType "k.o."]
[SourceTitle "playchess.com"]
[Source "ChessBase"]
[SourceQuality "1"]
[TimeControl "600+3"]

1. e4 {[%emt 0:05:11]} c5 {[%emt 0:06:05]} 2. Nf3 {[%emt 0:00:05]} e6 {[%emt 0:00:05]} 3. d4 {[%emt 0:00:04]} cxd4 {[%emt 0:00:04]} 4. Nxd4 {[%emt 0:00:05]} Nc6 {[%emt 0:00:04]} 5. Nc3 {[%emt 0:00:07]} d6 {[%emt 0:00:05]} 6. Be3 {[%emt 0:00:05]} Nf6 {[%emt 0:00:05]} 7. f3 {[%emt 0:00:05]} a6 {[%emt 0:00:04]} 8. Qd2 {[%emt 0:00:07]} Be7 {[%emt 0:00:04]} 9. O-O-O {[%emt 0:00:08]} Qc7 {[%emt 0:00:05]} 10. g4 {[%emt 0:00:08]} h6 {[%emt 0:00:07]} 11. h4 {[%emt 0:00:06]} b5 {[%emt 0:00:08]} 12. Bh3 {[%emt 0:00:06]} Bb7 {[%emt 0:00:06]} 13. Rdf1 {[%emt 0:00:08]} Nd7 {[%emt 0:00:06]} 14. g5 {[%emt 0:00:06]} Nxd4 {[%emt 0:00:11]} 15. Bxd4 {[%emt 0:00:11]} e5 {[%emt 0:00:04]} 16. Be3 {[%emt 0:00:06]} h5 {[%emt 0:00:07]} 17. f4 {[%emt 0:00:05]} b4 {[%emt 0:00:10]} 18. Nd5 {[%emt 0:00:06]} Bxd5 {[%emt 0:00:05]} 19. Qxd5 {[%emt 0:00:05]} Rc8 {[%emt 0:00:07]} 20. Rf2 {[%emt 0:00:07]} Nb6 {[%emt 0:00:07]} 21. Qb3 {[%emt 0:00:08]} a5 {[%emt 0:00:06]} 22. Bxc8 {[%emt 0:00:05]} Nxc8 {[%emt 0:00:08]} 23. fxe5 {[%emt 0:00:05]} Bf8 {[%emt 0:00:14]} 24. e6 {[%emt 0:00:07]} f6 {[%emt 0:00:07]} 25. gxf6 {[%emt 0:00:06]} gxf6 {[%emt 0:00:05]} 26. Rxf6 {[%emt 0:00:04]} Be7 {[%emt 0:00:07]} 27. Rf7 {[%emt 0:00:06]} Kd8 {[%emt 0:00:11]} 28. Bg5 {[%emt 0:00:06]} Re8 {[%emt 0:00:04]} 29. Bxe7+ {[%emt 0:00:05]} Rxe7 {[%emt 0:00:05]} 30. Rxe7 {[%emt 0:00:06]} Qxe7 {[%emt 0:00:05]} 31. Qd5 {[%emt 0:00:08]} Qc7 {[%emt 0:00:21]} 32. Qxh5 {[%emt 0:00:05]} Qg7 {[%emt 0:00:17]} 33. Qf7 {[%emt 0:00:06]} Qxf7 {[%emt 0:00:04]} 34. exf7 {[%emt 0:00:04]} Ke7 {[%emt 0:00:04]} 35. Rf1 {[%emt 0:00:04]} Nb6 {[%emt 0:00:04]} 36. f8=Q+ {[%emt 0:00:06]} 1-0